fUST/lending_fUST_20240611
["ID","MTS","AMOUNT","RATE_DAILY","PERIOD"]
[329104297,1718107854514,-604.80974932,0.00022465,2]
[329104298,1718107854530,-509.63947679,0.00022465,2]
[329104299,1718107854544,-500.0,0.00022465,2]
[329104300,1718107854563,-2907.52,0.00022465,2]
[329104301,1718107854580,-500.0,0.00022465,2]
[329104302,1718107854601,-500.0,0.00022465,2]
[329104303,1718107854618,-500.0,0.00022465,2]
[329104304,1718107854630,-500.0,0.00022465,2]
[329104305,1718107854646,-500.0,0.00022465,2]
[329104306,1718107854659,-303.94274118,0.00022465,2]
[329104307,1718107854670,-500.0,0.00022465,2]
[329104308,1718107854684,-2303.39,0.00022465,2]
[329104309,1718107854696,-500.0,0.00022465,2]
[329104310,1718107854708,-500.0,0.00022465,2]
[329104311,1718107854724,-500.0,0.00022465,2]
[329104312,1718107854742,-151.0,0.00022465,2]
[329104313,1718107854759,-500.0,0.00022465,2]
[329104314,1718107854780,-151.0,0.00022465,2]
[329104315,1718107854795,-2468.13,0.00022465,2]
[329104316,1718107854815,-500.0,0.00022465,2]
[329104317,1718107854829,-500.0,0.00022465,2]
[329104318,1718107854874,-1404.173327,0.00022465,2]
[329104319,1718107854888,-500.0,0.00022465,2]
[329104320,1718107854900,-1404.173327,0.00022465,2]
[329104321,1718107854911,-12717.46,0.00022465,2]
[329104322,1718107854923,-1404.173327,0.00022465,2]
[329104323,1718107854935,-1404.173327,0.00022465,2]
[329104324,1718107854946,-500.0,0.00022465,2]
[329104325,1718107854958,-500.0,0.00022465,2]
[329104326,1718107854969,-500.0,0.00022465,2]
[329104327,1718107854980,-500.0,0.00022465,2]
[329104328,1718107855070,-500.0,0.00022465,2]
[329104329,1718107855083,-500.0,0.00022465,2]
[329104330,1718107855094,-1526.35,0.00022465,2]
[329104331,1718107855105,-500.0,0.00022465,2]
[329104332,1718107855116,-500.0,0.00022465,2]
[329104333,1718107855127,-500.0,0.00022465,2]
[329104334,1718107855137,-500.0,0.00022465,2]
[329104335,1718107855148,-500.0,0.00022465,2]
[329104336,1718107855167,-500.0,0.00022465,2]
[329104337,1718107855181,-500.0,0.00022465,2]
[329104338,1718107855193,-151.0,0.00022465,2]
[329104339,1718107855203,-500.0,0.00022465,2]
[329104340,1718107855214,-500.0,0.00022465,2]
[329104341,1718107855231,-500.0,0.00022465,2]
[329104342,1718107855242,-500.0,0.00022465,2]
[329104343,1718107855253,-3277.92,0.00022465,2]
[329104344,1718107855273,-500.0,0.00022465,2]
[329104345,1718107855286,-820.54079839,0.00022465,2]
[329104349,1718108078059,155.01705188,9.999e-05,2]
[329104350,1718108188591,451.39,0.00010959,2]
[329104351,1718108209381,170.98,0.00010959,2]
[329104352,1718108219917,854.93,0.00010959,2]
[329104375,1718108228050,-523.3760438,0.00014908,2]
[329104376,1718108228076,-300.0,0.00014909,2]
[329104377,1718108228099,-300.0,0.00014909,2]
[329104378,1718108228123,-1911.54148934,0.0001491,2]
[329104379,1718108228147,-521.99221911,0.0001491,2]
[329104380,1718108228171,-3072.52405226,0.00014911,2]
[329104381,1718108228195,-2037.29149856,0.00014911,2]
[329104382,1718108228219,-1877.1524641,0.00014912,2]
[329104383,1718108228245,-42112.57217746,0.00014912,2]
[329104384,1718108228269,-9591.20034243,0.00014913,2]
[329104385,1718108228294,-11100.13884587,0.00014914,2]
[329104386,1718108228318,-509.03647881,0.00014916,2]
[329104387,1718108228342,-1139.36136678,0.00014918,2]
[329104388,1718108228367,-946.03043459,0.00015,2]
[329104389,1718108229199,4057.78258689,0.00014909,2]
[329104390,1718108242019,187.41110824,9.999e-05,2]
[329104391,1718108251391,155.99,0.00010959,2]
[329104392,1718108261897,238.33,0.00010959,2]
[329104393,1718108272409,198.61,0.00010959,2]
[329104394,1718108282916,165.51,0.00010959,2]
[329104395,1718108293491,827.55,0.00010959,2]
[329104396,1718108468660,692.66500344,9.999e-05,2]
[329104397,1718108478409,1442.34664303,9.999e-05,2]
[329104398,1718108519315,1995.26462774,9.999e-05,2]
[329104399,1718108520737,411.64915333,9.999e-05,2]
[329104400,1718108633620,-2037.29149856,0.000153,2]
[329104401,1718108633645,-509.03647881,0.00015301,2]
[329104402,1718108633669,-19313.15373324,0.00015301,2]
[329104403,1718108633696,-59592.30389839,0.00015302,2]
[329104404,1718108633723,-8548.214391,0.00015303,2]
[329104417,1718108958715,692.66500344,9.999e-05,2]
[329104518,1718109033190,-509.03647881,0.00014978,2]
[329104521,1718109033202,-36.83915691,0.00014978,2]
[329104523,1718109033216,-9554.36118552,0.00014978,2]
[329104525,1718109033228,-1984.07396026,0.00014979,2]
[329104527,1718109033239,-1911.54148934,0.00014979,2]
[329104529,1718109033257,-300.0,0.00014979,2]
[329104531,1718109033268,-300.0,0.00014979,2]
[329104533,1718109033279,-1877.1524641,0.0001498,2]
[329104535,1718109033289,-3072.52405226,0.0001498,2]
[329104537,1718109033298,-155.01705188,0.00015003,2]
[329104539,1718109033309,-521.94237931,0.00015004,2]
[329104541,1718109033318,-24900.0,0.00015005,2]
[329104543,1718109033328,-4889.74879418,0.00015202,2]
[329104545,1718109033338,-500.13400856,0.00015302,2]
[329104547,1718109033348,-19290.97924665,0.00015302,2]
[329104549,1718109033358,-157.23325445,0.00015305,2]
[329104551,1718109033368,-1167.51576,0.00015308,2]
[329104553,1718109033379,-640.44779118,0.000156,2]
[329104555,1718109033389,-236.04021112,0.00016113,2]
[329104558,1718109033400,-1324.66316416,0.00016113,2]
[329104559,1718109033411,-411.20432073,0.00016113,2]
[329104561,1718109033422,-1281.12369581,0.00016114,2]
[329104564,1718109033433,-2054.7386784,0.00016117,2]
[329104566,1718109033446,-259.54356487,0.00016795,2]
[329104568,1718109033456,-4889.74879411,0.00016873,2]
[329104569,1718109033467,-1441.23601454,0.00016886,2]
[329104571,1718109033477,-195.02314914,0.00016886,2]
[329104573,1718109033488,-659.24463131,0.00016886,2]
[329104576,1718109033498,-6293.90973415,0.0001689,2]
[329104578,1718109033516,-16219.34330646,0.0001689,2]
[329104580,1718109033527,-27862.22212611,0.00016891,2]
[329104582,1718109033537,-3000.0,0.00016895,2]
[329104584,1718109033547,-186.68009486,0.00017893,2]
[329104586,1718109033557,-1792.89564574,0.00017893,2]
[329104661,1718109041023,-6044.58593337,0.00017893,2]
[329104662,1718109041040,-243.48233968,0.00017894,2]
[329104663,1718109041055,-10267.9793009,0.00017894,2]
[329104664,1718109041067,-10490.37515331,0.00017898,2]
[329104665,1718109041078,-1355.41274288,0.00018,2]
[329104666,1718109041089,-632.90357925,0.00018,2]
[329104667,1718109041101,-2765.01589722,0.00018,2]
[329104668,1718109041111,-259.54356483,0.00018051,2]
[329104669,1718109041123,-4889.74879411,0.00018544,2]
[329104670,1718109041133,-2324.93382203,0.000189,2]
[329104671,1718109041143,-4240.080008,0.00019178,15]
[329104672,1718109041153,-188.5,0.00019178,2]
[329104673,1718109041165,-278.08277314,0.00019178,2]
[329104674,1718109041175,-500.0,0.00019178,2]
[329104675,1718109041185,-500.0,0.00019178,2]
[329104676,1718109041196,-216.75066233,0.00019178,2]
[329104677,1718109041206,-500.0,0.00019178,2]
[329104678,1718109041216,-500.0,0.00019178,2]
[329104679,1718109041226,-500.0,0.00019178,2]
[329104680,1718109041236,-500.0,0.00019178,2]
[329104681,1718109041248,-500.0,0.00019178,2]
[329104682,1718109041261,-500.0,0.00019178,2]
[329104683,1718109041272,-500.0,0.00019178,2]
[329104684,1718109041282,-418.73627109,0.00019178,2]
[329104685,1718109041292,-500.0,0.00019178,2]
[329104686,1718109041303,-500.0,0.00019178,2]
[329104687,1718109041314,-500.0,0.00019178,2]
[329104688,1718109041324,-500.0,0.00019178,2]
[329104689,1718109041335,-500.0,0.00019178,2]
[329104690,1718109041345,-500.0,0.00019178,2]
[329104691,1718109041355,-500.0,0.00019178,2]
[329104692,1718109041366,-500.0,0.00019178,2]
[329104693,1718109041377,-500.0,0.00019178,2]
[329104694,1718109041388,-500.0,0.00019178,2]
[329104695,1718109041398,-500.0,0.00019178,2]
[329104696,1718109041410,-500.0,0.00019178,2]
[329104697,1718109041420,-500.0,0.00019178,2]
[329104698,1718109041430,-500.0,0.00019178,2]
[329104699,1718109041440,-500.0,0.00019178,2]
[329104700,1718109041451,-500.0,0.00019178,2]
[329104701,1718109041462,-500.0,0.00019178,2]
[329104702,1718109041472,-552.12924307,0.00019178,2]
[329104703,1718109041483,-500.0,0.00019178,2]
[329104704,1718109041494,-500.0,0.00019178,2]
[329104705,1718109041504,-500.0,0.00019178,2]
[329104707,1718109041514,-500.0,0.00019178,2]
[329104708,1718109041524,-650.0,0.00019178,2]
[329104709,1718109041534,-500.0,0.00019178,2]
[329104710,1718109041544,-500.0,0.00019178,2]
[329104711,1718109041554,-500.0,0.00019178,2]
[329104712,1718109041565,-500.0,0.00019178,2]
[329104713,1718109041575,-500.0,0.00019178,2]
[329104714,1718109041586,-500.0,0.00019178,2]
[329104715,1718109041596,-500.0,0.00019178,2]
[329104716,1718109041606,-500.0,0.00019178,2]
[329104717,1718109041617,-500.0,0.00019178,2]
[329104718,1718109041627,-296.25689551,0.00019178,2]
[329104719,1718109041637,-500.0,0.00019178,2]
[329104720,1718109041648,-500.0,0.00019178,2]
[329104721,1718109041660,-500.0,0.00019178,2]
[329104722,1718109041671,-500.0,0.00019178,2]
[329104723,1718109041682,-500.0,0.00019178,2]
[329104724,1718109041692,-500.0,0.00019178,2]
[329104725,1718109041703,-500.0,0.00019178,2]
[329104726,1718109041714,-500.0,0.00019178,2]
[329104727,1718109041725,-490.0,0.00019178,2]
[329104728,1718109041736,-500.0,0.00019178,2]
[329104729,1718109041746,-254.71998944,0.00019178,2]
[329104730,1718109041757,-500.0,0.00019178,2]
[329104731,1718109041767,-499.99999999,0.00019178,2]
[329104732,1718109041777,-500.0,0.00019178,2]
[329104733,1718109041788,-500.0,0.00019178,2]
[329104734,1718109041799,-490.64019957,0.00019178,2]
[329104735,1718109041809,-500.0,0.00019178,2]
[329104736,1718109041819,-500.0,0.00019178,2]
[329104737,1718109041830,-500.0,0.00019178,2]
[329104738,1718109041841,-500.0,0.00019178,2]
[329104739,1718109041851,-500.0,0.00019178,2]
[329104740,1718109041861,-500.0,0.00019178,2]
[329104741,1718109041871,-490.0,0.00019178,2]
[329104742,1718109041882,-500.0,0.00019178,2]
[329104743,1718109041892,-479.68061974,0.00019178,2]
[329104744,1718109041902,-500.0,0.00019178,2]
[329104745,1718109041914,-256.72854594,0.00019178,2]
[329104746,1718109041924,-500.0,0.00019178,2]
[329104747,1718109041934,-473.93698984,0.00019178,2]
[329104748,1718109041945,-500.0,0.00019178,2]
[329104749,1718109041957,-500.0,0.00019178,2]
[329104750,1718109041968,-500.0,0.00019178,2]
[329104751,1718109041978,-400.0,0.00019178,2]
[329104752,1718109041988,-355.25,0.00019178,2]
[329104754,1718109041999,-500.0,0.00019178,2]
[329104755,1718109042009,-500.0,0.00019178,2]
[329104756,1718109042022,-500.0,0.00019178,2]
[329104757,1718109042033,-500.0,0.00019178,2]
[329104758,1718109042043,-434.32199895,0.00019178,2]
[329104759,1718109042054,-500.0,0.00019178,2]
[329104760,1718109042066,-303.60295073,0.00019178,2]
[329104761,1718109042076,-500.0,0.00019178,2]
[329104762,1718109042086,-500.0,0.00019178,2]
[329104763,1718109042098,-500.0,0.00019178,2]
[329104764,1718109042108,-500.0,0.00019178,2]
[329104765,1718109042118,-500.0,0.00019178,2]
[329104766,1718109042130,-170.28219989,0.00019178,2]
[329104767,1718109042141,-502.68438171,0.00019178,2]
[329104768,1718109042151,-354.73022157,0.00019178,2]
[329104769,1718109042163,-500.0,0.00019178,2]
[329104770,1718109042173,-500.0,0.00019178,2]
[329104771,1718109042184,-500.0,0.00019178,2]
[329104772,1718109042194,-158.27578299,0.00019178,2]
[329104773,1718109042205,-505.75154542,0.00019178,2]
[329104774,1718109042215,-500.0,0.00019178,2]
[329104775,1718109042226,-500.0,0.00019178,2]
[329104777,1718109042237,-379.74713404,0.00019178,2]
[329104779,1718109042249,-500.0,0.00019178,2]
[329104781,1718109042261,-500.0,0.00019178,2]
[329104782,1718109042273,-500.0,0.00019178,2]
[329104783,1718109042285,-1759.58042896,0.00019178,2]
[329104784,1718109042295,-1759.58042896,0.00019178,2]
[329104785,1718109042307,-1759.58042896,0.00019178,2]
[329104786,1718109042319,-500.0,0.00019178,2]
[329104787,1718109042329,-500.0,0.00019178,2]
[329104788,1718109042340,-500.0,0.00019178,2]
[329104789,1718109042350,-500.0,0.00019178,2]
[329104790,1718109042360,-500.0,0.00019178,2]
[329104791,1718109042371,-189.85928935,0.00019178,2]
[329104792,1718109042380,-345.9023643,0.00019178,2]
[329104793,1718109042391,-259.54356483,0.00019306,2]
[329104794,1718109042401,-160.0,0.00019613,2]
[329104795,1718109042412,-309.95350775,0.00019886,2]
[329104796,1718109042423,-220.34273242,0.0001989,2]
[329104797,1718109042433,-205.43005303,0.0001989,2]
[329104798,1718109042442,-305.2151031,0.0001989,2]
[329104799,1718109042452,-187.78108932,0.00019893,2]
[329104800,1718109042462,-309.92252015,0.00019893,2]
[329104801,1718109042472,-2426.49686741,0.00019893,2]
[329104802,1718109042482,-275.50564015,0.00019893,2]
[329104803,1718109042492,-163.05236711,0.00019893,2]
[329104804,1718109042504,-282.36642828,0.00019893,2]
[329104805,1718109042514,-155.08337286,0.00019893,2]
[329104806,1718109042524,-155.07072833,0.00019893,2]
[329104807,1718109042534,-156.11176586,0.00019893,2]
[329104808,1718109042544,-529.61140751,0.00019894,2]
[329104809,1718109042554,-927.1117103,0.00019894,2]
[329104810,1718109042564,-34999.64878032,0.00019895,2]
[329104811,1718109042576,-155.3086056,0.00019993,2]
[329104812,1718109042586,-155.20500085,0.00019993,2]
[329104813,1718109042597,-735.21963898,0.00019993,2]
[329104814,1718109042607,-309.89153874,0.00019993,2]
[329104815,1718109042618,-317.21490521,0.00019993,2]
[329104816,1718109042628,-247.01657342,0.00019993,2]
[329104817,1718109042639,-241.69907593,0.00019993,2]
[329104818,1718109042649,-1100.44389189,0.00019993,2]
[329104819,1718109042662,-523.75050212,0.00019993,2]
[329104820,1718109042673,-228.35184601,0.00019993,2]
[329104821,1718109042683,-158.85250927,0.00019993,2]
[329104823,1718109042695,-331.14541743,0.00019993,2]
[329104824,1718109042706,-272.22541493,0.00019993,2]
[329104826,1718109042716,-2811.42087811,0.00019993,2]
[329104828,1718109042728,-155.76320507,0.00019993,2]
[329104829,1718109042739,-758.02343648,0.00019993,2]
[329104830,1718109042750,-252.32412823,0.00019994,2]
[329104832,1718109042762,-2192.12948252,0.00019994,2]
[329104833,1718109042773,-39114.71989726,0.00019994,2]
[329104834,1718109042783,-800.96744469,0.0002,2]
[329104835,1718109042796,-529.07913635,0.0002,4]
[329104836,1718109042807,-225.1695884,0.0002,2]
[329104837,1718109042817,-121204.4388064,0.0002,2]
[329104838,1718109042828,-320.0,0.00020161,2]
[329104839,1718109042840,-4889.74879411,0.00020215,2]
[329104840,1718109042851,-259.54356483,0.00020562,2]
[329104841,1718109042863,-580.61033652,0.00020709,2]
[329104842,1718109042874,-7269.5959632,0.00021,2]
[329104843,1718109042886,-5472.52733108,0.00021019,2]
[329104844,1718109042897,-2686.17707876,0.00021021,2]
[329104845,1718109042908,-205.1548009,0.00021517,2]
[329104846,1718109042926,-1501.26270931,0.00021663,2]
[329104847,1718109042938,-499.05104118,0.000217,10]
[329104848,1718109042949,-88888.0,0.00021717,3]
[329104849,1718109042960,-410.3,0.00021747,3]
[329104850,1718109042971,-190.7,0.00021747,3]
[329104851,1718109042982,-259.54356483,0.00021817,2]
[329104853,1718109042994,-4889.74879411,0.00021887,2]
[329104854,1718109043008,-3000.0,0.00021916,2]
[329104855,1718109043022,-3000.0,0.00021916,2]
[329104856,1718109043034,-3000.0,0.00021916,2]
[329104857,1718109043046,-3000.0,0.00021916,2]
[329104858,1718109043059,-3000.0,0.00021916,2]
[329104859,1718109043071,-3000.0,0.00021916,2]
[329104860,1718109043082,-500.0,0.00021917,2]
[329104861,1718109043093,-505.96167504,0.00021917,2]
[329104862,1718109043106,-500.0,0.00021917,2]
[329104863,1718109043116,-500.0,0.00021917,2]
[329104864,1718109043127,-500.0,0.00021917,2]
[329104865,1718109043139,-503.87656587,0.00021917,2]
[329104866,1718109043150,-500.0,0.00021917,2]
[329104867,1718109043166,-500.0,0.00021917,2]
[329104868,1718109043177,-500.0,0.00021917,2]
[329104869,1718109043188,-268.75111322,0.00021917,2]
[329104872,1718109043199,-500.51879011,0.00021917,2]
[329104875,1718109043209,-321.65090509,0.00021917,2]
[329104878,1718109043220,-500.0,0.00021917,2]
[329104881,1718109043230,-500.0,0.00021917,2]
[329104884,1718109043241,-500.48581395,0.00021917,2]
[329104887,1718109043259,-501.58862534,0.00021917,2]
[329104889,1718109043269,-500.0,0.00021917,2]
[329104893,1718109043280,-500.0,0.00021917,2]
[329104910,1718109043409,-500.0,0.00021917,2]
[329104912,1718109043423,-500.0,0.00021917,2]
[329104914,1718109043433,-500.0,0.00021917,2]
[329104916,1718109043443,-565.0,0.00021917,2]
[329104918,1718109043453,-500.0,0.00021917,2]
[329104920,1718109043462,-500.0,0.00021917,2]
[329104922,1718109043473,-500.0,0.00021917,2]
[329104924,1718109043483,-500.0,0.00021917,2]
[329104927,1718109043493,-500.0,0.00021917,2]
[329104929,1718109043503,-500.0,0.00021917,2]
[329104931,1718109043513,-500.0,0.00021917,2]
[329104932,1718109043523,-180.7908262,0.00021917,2]
[329104933,1718109043534,-500.36131839,0.00021917,2]
[329104934,1718109043544,-500.0,0.00021917,2]
[329104935,1718109043554,-407.80515652,0.00021917,2]
[329104936,1718109043564,-500.25605501,0.00021917,2]
[329104937,1718109043574,-500.0,0.00021917,2]
[329104938,1718109043585,-505.4945338,0.00021917,2]
[329104939,1718109043594,-500.0,0.00021917,2]
[329104940,1718109043605,-500.0,0.00021917,2]
[329104941,1718109043615,-500.0,0.00021917,2]
[329104943,1718109043625,-555.04581803,0.00021917,2]
[329104945,1718109043635,-502.33590382,0.00021917,2]
[329104947,1718109043645,-364.17089129,0.00021917,2]
[329104949,1718109043656,-500.59207061,0.00021917,2]
[329104951,1718109043668,-632.83241667,0.00021917,2]
[329104953,1718109043679,-500.0,0.00021917,2]
[329104954,1718109043689,-500.0,0.00021917,2]
[329104956,1718109043699,-500.0,0.00021917,2]
[329104958,1718109043709,-500.0,0.00021917,2]
[329104960,1718109043719,-500.0,0.00021917,2]
[329104961,1718109043729,-500.0,0.00021917,2]
[329104962,1718109043739,-500.0,0.00021917,2]
[329104963,1718109043750,-500.0,0.00021917,2]
[329104964,1718109043760,-500.0,0.00021917,2]
[329104965,1718109043771,-504.22057924,0.00021917,2]
[329104966,1718109043781,-500.0,0.00021917,2]
[329104967,1718109043791,-500.0,0.00021917,2]
[329104968,1718109043802,-571.38758933,0.00021917,2]
[329104969,1718109043812,-364.69045059,0.00021917,2]
[329104970,1718109043822,-500.0,0.00021917,2]
[329104971,1718109043832,-500.0,0.00021917,2]
[329104972,1718109043843,-500.0,0.00021917,2]
[329104973,1718109043854,-500.0,0.00021917,2]
[329104974,1718109043865,-500.0,0.00021917,2]
[329104975,1718109043875,-500.0,0.00021917,2]
[329104976,1718109043886,-500.0,0.00021917,2]
[329104977,1718109043897,-500.0,0.00021917,2]
[329104978,1718109043907,-500.0,0.00021917,2]
[329104979,1718109043918,-500.0,0.00021917,2]
[329104980,1718109043928,-500.0,0.00021917,2]
[329104982,1718109043939,-504.85194436,0.00021917,2]
[329104984,1718109043949,-529.45223768,0.00021917,2]
[329104986,1718109043960,-502.42349639,0.00021917,2]
[329104988,1718109043970,-500.0,0.00021917,2]
[329104990,1718109043980,-502.47805445,0.00021917,2]
[329104992,1718109043990,-374.45765602,0.00021917,2]
[329104994,1718109044000,-500.0,0.00021917,2]
[329104996,1718109044012,-500.0,0.00021917,2]
[329104998,1718109044024,-500.0,0.00021917,2]
[329105000,1718109044036,-500.0,0.00021917,2]
[329105002,1718109044047,-500.0,0.00021917,2]
[329105005,1718109044059,-500.0,0.00021917,2]
[329105007,1718109044070,-500.0,0.00021917,2]
[329105009,1718109044080,-500.0,0.00021917,2]
[329105011,1718109044092,-509.40811731,0.00021917,2]
[329105013,1718109044103,-500.0,0.00021917,2]
[329105015,1718109044114,-251.14926803,0.00021917,2]
[329105017,1718109044124,-504.29842193,0.00021917,2]
[329105019,1718109044135,-500.0,0.00021917,2]
[329105021,1718109044145,-501.41958495,0.00021917,2]
[329105022,1718109044155,-500.97617179,0.00021917,2]
[329105025,1718109044168,-500.0,0.00021917,2]
[329105026,1718109044178,-500.0,0.00021917,2]
[329105028,1718109044189,-500.0,0.00021917,2]
[329105030,1718109044199,-500.0,0.00021917,2]
[329105032,1718109044209,-500.0,0.00021917,2]
[329105034,1718109044219,-500.0,0.00021917,2]
[329105036,1718109044229,-500.0,0.00021917,2]
[329105038,1718109044240,-500.0,0.00021917,2]
[329105041,1718109044256,-500.0,0.00021917,2]
[329105043,1718109044266,-500.0,0.00021917,2]
[329105045,1718109044276,-500.0,0.00021917,2]
[329105047,1718109044286,-500.0,0.00021917,2]
[329105049,1718109044297,-500.0,0.00021917,2]
[329105051,1718109044307,-505.03349213,0.00021917,2]
[329105053,1718109044318,-500.0,0.00021917,2]
[329105055,1718109044328,-546.34061276,0.00021917,2]
[329105056,1718109044338,-500.0,0.00021917,2]
[329105057,1718109044348,-500.0,0.00021917,2]
[329105058,1718109044357,-500.0,0.00021917,2]
[329105059,1718109044366,-500.0,0.00021917,2]
[329105060,1718109044376,-500.0,0.00021917,2]
[329105061,1718109044385,-500.0,0.00021917,2]
[329105062,1718109044394,-500.0,0.00021917,2]
[329105063,1718109044403,-525.03726627,0.00021917,2]
[329105064,1718109044412,-500.0,0.00021917,2]
[329105065,1718109044422,-500.0,0.00021917,2]
[329105066,1718109044431,-500.0,0.00021917,2]
[329105067,1718109044440,-500.0,0.00021917,2]
[329105068,1718109044449,-500.0,0.00021917,2]
[329105069,1718109044459,-500.0,0.00021917,2]
[329105070,1718109044468,-500.0,0.00021917,2]
[329105071,1718109044477,-500.0,0.00021917,2]
[329105072,1718109044487,-502.86779515,0.00021917,2]
[329105073,1718109044496,-500.0,0.00021917,2]
[329105074,1718109044506,-500.0,0.00021917,2]
[329105075,1718109044515,-500.0,0.00021917,2]
[329105076,1718109044526,-503.09898158,0.00021917,2]
[329105077,1718109044536,-500.0,0.00021917,2]
[329105078,1718109044546,-500.0,0.00021917,2]
[329105079,1718109044555,-500.0,0.00021917,2]
[329105080,1718109044565,-500.0,0.00021917,2]
[329105081,1718109044575,-500.0,0.00021917,2]
[329105083,1718109044585,-500.0,0.00021917,2]
[329105085,1718109044595,-492.77975096,0.00021917,2]
[329105087,1718109044605,-500.0,0.00021917,2]
[329105089,1718109044615,-501.77015956,0.00021917,2]
[329105091,1718109044625,-500.93578537,0.00021917,2]
[329105093,1718109044636,-500.0,0.00021917,2]
[329105095,1718109044645,-500.0,0.00021917,2]
[329105097,1718109044656,-270.97207789,0.00021917,2]
[329105099,1718109044667,-500.0,0.00021917,2]
[329105101,1718109044677,-500.0,0.00021917,2]
[329105103,1718109044686,-500.0,0.00021917,2]
[329105105,1718109044697,-507.09658554,0.00021917,2]
[329105107,1718109044707,-500.00385671,0.00021917,2]
[329105109,1718109044717,-500.0,0.00021917,2]
[329105111,1718109044726,-500.0,0.00021917,2]
[329105113,1718109044736,-500.0,0.00021917,2]
[329105115,1718109044746,-500.0,0.00021917,2]
[329105117,1718109044756,-158.83946374,0.00021917,2]
[329105119,1718109044766,-500.0,0.00021917,2]
[329105121,1718109044779,-501.17608346,0.00021917,2]
[329105123,1718109044789,-500.0,0.00021917,2]
[329105125,1718109044799,-500.0,0.00021917,2]
[329105127,1718109044809,-500.0,0.00021917,2]
[329105129,1718109044818,-500.0,0.00021917,2]
[329105131,1718109044828,-500.0,0.00021917,2]
[329105133,1718109044839,-500.0,0.00021917,2]
[329105135,1718109044848,-502.01549213,0.00021917,2]
[329105137,1718109044858,-157.63869526,0.00021917,2]
[329105139,1718109044868,-500.0,0.00021917,2]
[329105141,1718109044879,-500.0,0.00021917,2]
[329105143,1718109044889,-501.08768205,0.00021917,2]
[329105145,1718109044899,-500.0,0.00021917,2]
[329105147,1718109044910,-500.0,0.00021917,2]
[329105149,1718109044922,-500.32483161,0.00021917,2]
[329105151,1718109044932,-500.0,0.00021917,2]
[329105153,1718109044944,-500.34839451,0.00021917,2]
[329105155,1718109044954,-500.0,0.00021917,2]
[329105157,1718109044964,-502.31125682,0.00021917,2]
[329105159,1718109044974,-500.0,0.00021917,2]
[329105161,1718109044984,-500.0,0.00021917,2]
[329105163,1718109044994,-328.43730866,0.00021917,2]
[329105165,1718109045004,-500.0,0.00021917,2]
[329105167,1718109045015,-500.0,0.00021917,2]
[329105169,1718109045030,-458.60833137,0.00021917,2]
[329105171,1718109045041,-500.0,0.00021917,2]
[329105173,1718109045050,-500.0,0.00021917,2]
[329105175,1718109045062,-501.01798456,0.00021917,2]
[329105177,1718109045071,-546.40192311,0.00021917,2]
[329105179,1718109045081,-500.0,0.00021917,2]
[329105181,1718109045092,-501.22089808,0.00021917,2]
[329105183,1718109045105,-500.0,0.00021917,2]
[329105185,1718109045115,-500.0,0.00021917,2]
[329105187,1718109045125,-500.46554124,0.00021917,2]
[329105189,1718109045135,-500.0,0.00021917,2]
[329105191,1718109045144,-506.77564398,0.00021917,2]
[329105193,1718109045155,-500.0,0.00021917,2]
[329105195,1718109045166,-500.0,0.00021917,2]
[329105197,1718109045176,-500.0,0.00021917,2]
[329105199,1718109045186,-500.0,0.00021917,2]
[329105201,1718109045196,-500.0,0.00021917,2]
[329105203,1718109045206,-500.0,0.00021917,2]